Cogmind - Beta 13 @@@ ROGUE MODE // 2024.07.25 @ 17:42:52 Player: Necoji Result: Destroyed by D-53 Grenadier with Mini Grenade Launcher Performance ------------- Evolutions (1) 500 Regions Visited (3) 600 Robots Destroyed (22) 110 Value Destroyed (543) 543 Prototype IDs (2) 40 Alien Tech Used (0) 0 Bonus (60) 60 TOTAL SCORE: 1853 Bonus ------- Follower Combat Kills 60 Cogmind --------- Core Integrity 0/400 Matter 246/300 Energy 69/100 System Corruption 1% Temperature Cool (0) Movement Core (100) Ox1 Location -9/Mines Parts ------- > --- POWER (2) -------- (None) > --- PROPULSION (2) --- (None) > --- UTILITY (3) ------ Small Storage Unit Signal Interpreter > --- WEAPON (2) ------- Mini Grenade Launcher > --- INVENTORY (8) ---- Improved Ion Engine Aluminum Leg Aluminum Leg Targeting Computer Light Armor Plating EM Shotgun Mini Grenade Launcher Datajack Peak State ------------ > --- POWER ------------ Ion Engine Light Nuclear Core > --- PROPULSION ------- Aluminum Leg Aluminum Leg > --- UTILITY ---------- Small Storage Unit Signal Interpreter Hardened Light Armor Plating > --- WEAPON ----------- Shotgun Datajack > --- INVENTORY -------- Ion Engine Light Ion Engine Light Armor Plating Shotgun Mini Grenade Launcher Mini Grenade Launcher Hammer [Rating: 14] Favorites ----------- Power Light Ion Engine Engine Light Ion Engine Power Core Light Nuclear Core Propulsion Aluminum Leg Leg Aluminum Leg Utility Small Storage Unit Storage Small Storage Unit Processor Visual Processing Unit Protection Hardened Light Armor Plating Weapon Shotgun Energy Gun EM Shotgun Ballistic Gun Shotgun Launcher Mini Grenade Launcher Impact Weapon Hammer Special Melee Weapon Datajack Build | -11 -10 -9 -9 ------- Run | Yrd Mat Mat Min Slots Evolved 2 | . . 2 . Power 1 | . . 1 . Propulsion . | . . . . Utility 1 | . . 1 . Weapon . | . . . . Parts Attached 28 | 5 16 4 3 Power 6 | 1 3 2 . Engine 5 | 1 3 1 . Core 1 | . . 1 . Reactor . | . . . . Propulsion 7 | 2 5 . . Treads . | . . . . Leg 7 | 2 5 . . Wheel . | . . . . Hover . | . . . . Flight . | . . . . Utility 4 | 1 2 1 . Device . | . . . . Storage 1 | 1 . . . Processor 2 | . 2 . . Hackware . | . . . . Protection 1 | . . 1 . Artifact . | . . . . Weapon 11 | 1 6 1 3 Energy Gun 1 | . . . 1 Energy Cannon . | . . . . Ballistic Gun 5 | 1 3 . 1 Ballistic Cannon . | . . . . Launcher 2 | . 1 . 1 Special Weapon . | . . . . Impact Weapon 1 | . 1 . . Slashing Weapon . | . . . . Piercing Weapon . | . . . . Special Melee Weapon 2 | . 1 1 . Unidentified Prototypes . | . . . . Parts Lost 11 | . 4 1 6 Power 3 | . 1 1 1 Propulsion 3 | . 1 . 2 Utility 1 | . . . 1 Weapon 4 | . 2 . 2 Highest Loss Streak 3 | . 2 1 3 To Critical Strikes . | . . . . Average Slot Usage (%) 79 | . 79 95 56 Engine 9 | . 11 10 . Core 2 | . . 11 2 Leg 15 | . 14 22 11 Storage 12 | . 14 11 11 Processor 12 | . 14 11 11 Protection 2 | . . 10 1 Energy Gun 1 | . . . 8 Ballistic Gun 17 | . 21 11 9 Impact Weapon 1 | . 1 . . Special Melee Weapon 1 | . . 7 . Naked Turns . | . . . . Heaviest Build 24 | 12 13 24 18 Greatest Support 20 | 20 20 20 20 Greatest Overweight (x) 4 | 3 4 1 1 Average Overweight (x) . | . . . . Largest Inventory Capacity 8 | 8 8 8 8 Average Capacity 7 | 7 8 8 8 Most Carried 8 | 8 8 8 8 Average Carried 7 | 4 7 6 7 Final Capacity 8 | 8 8 8 8 Final Carried 8 | 7 7 8 8 Class Distribution -------------------- 79% | Mutant 20% | Scavenger-Mutant Dominant Class ---------------- Mutant | -10/Materials Scavenger-Mutant | -9/Materials Mutant | -9/Mines Resources | -11 -10 -9 -9 ----------- Run | Yrd Mat Mat Min Matter Collected 693 | 242 261 126 64 Remotely . | . . . . Salvage Created 746 | . 303 202 241 Parts 43 | . 21 12 10 Haulers Intercepted . | . . . . Recyclers Shooed . | . . . . Parts Field Recycled . | . . . . Retrieved Matter . | . . . . Parts Self-Destructed . | . . . . Prevented . | . . . . Kills | -11 -10 -9 -9 ------- Run | Yrd Mat Mat Min Combat Hostiles Destroyed 25 | . 9 7 9 Guns 21 | . 6 7 8 AOE 4 | . 3 . 1 Classes Destroyed 4 | . 3 . 1 Builder 3 | . 2 . 1 Swarmer 6 | . 3 3 . Grunt 13 | . 6 4 3 Assembled 6 | . . . 6 Best Kill Streak 7 | . 5 4 7 Combat Bots Only 6 | . 3 4 6 Max Kills in Single Turn 4 | . 4 1 2 Gunslinging 1 | . . . 1 Exploded 2 | . 2 . 1 Melee . | . . . . Uniques/NPCs Destroyed . | . . . . Combat | -11 -10 -9 -9 -------- Run | Yrd Mat Mat Min Hostile Shots Fired 194 | . 71 76 47 Missed 56 | . 22 20 14 Damage Taken 1725 | . 559 516 650 Core 595 | . 172 105 318 Absorbed by Shields . | . . . . Core Remaining (%) 65 | 100 31 . . Volleys Fired 56 | . 18 20 18 Largest 2 | . 2 1 2 Hottest 68 | . 43 23 68 Shots Fired 84 | . 29 20 35 Gun 79 | . 27 20 32 Cannon . | . . . . Launcher 5 | . 2 . 3 Special . | . . . . Kinetic 64 | . 27 20 17 Thermal . | . . . . Explosive 5 | . 2 . 3 Electromagnetic 15 | . . . 15 Robot Hit Streak 9 | . 9 5 6 Robot Miss Streak 4 | . 4 2 3 Penetration Max . | . . . . Secondary Targets 2 | . . . 2 Max Gunslinging Chain 1 | . . . 1 Shots Hit Robots 61 | . 17 22 22 Core Hits 59 | . 18 11 30 Critical Kills . | . . . . Critical Parts Destroyed . | . . . . Critical Strikes . | . . . . Melee Attacks 6 | . 1 5 . Impact 1 | . 1 . . Slashing . | . . . . Piercing . | . . . . Sneak Attacks 3 | . . 3 . Combat Hostiles . | . . . . Follow-up Attacks . | . . . . Damage Inflicted 1272 | . 564 236 472 Guns 762 | . 234 236 292 Cannons . | . . . . Explosions 488 | . 310 . 178 Melee 18 | . 18 . . Ramming 4 | . 2 . 2 Kinetic 615 | . 234 236 145 Thermal . | . . . . Explosive 488 | . 310 . 178 Electromagnetic 147 | . . . 147 Impact 18 | . 18 . . Slashing . | . . . . Piercing . | . . . . Highest Corruption 1 | . . 1 1 Average Corruption 1 | . . 1 1 Corruption Purged . | . . . . Corruption Blocked . | . . . . Effects 6 | . . 3 3 Message Errors 2 | . . 2 . Matter Fused 2 | . . 1 1 Heat Flow Errors 1 | . . . 1 Data Loss (major) 1 | . . . 1 Overload Shots . | . . . . Overflow Damage 16 | . . . 16 Projectiles . | . . . . Explosions 16 | . . . 16 Melee . | . . . . Knockbacks . | . . . . Impact . | . . . . Kinetic . | . . . . Secondary . | . . . . Self-Inflicted Damage 18 | . 1 . 17 Shots 1 | . . . 1 Rammed 1 | . 1 . . Targets Rammed 2 | . 1 . 1 Kicked 1 | . . . 1 Crushed . | . . . . Highest Temperature 182 | . 3 72 182 Average Temperature 35 | . 3 31 45 Received Heat Transfer 624 | . 291 138 195 Siege Activations . | . . . . Robots Corrupted . | . . . . Combat Hostiles . | . . . . Parts Fried . | . . . . Impact Corruptions . | . . . . Robots Melted . | . . . . Combat Hostiles . | . . . . Parts Melted . | . . . . Heat Transferred . | . . . . Parts Sabotaged . | . . . . Parts Stolen . | . . . . Parts Stripped . | . . . . Power Chain Reactions . | . . . . Alert | -11 -10 -9 -9 ------- Run | Yrd Mat Mat Min Peak Influence 190 | . 170 190 117 Initial 5 | . . 5 . Average 53 | . 31 118 60 Maximum Alert Level . | . . . . Low Security (%) 100 | 100 100 100 100 Level 1 . | . . . . Level 2 . | . . . . Level 3 . | . . . . Level 4 . | . . . . Level 5 . | . . . . High Security . | . . . . Max Security . | . . . . Squads Dispatched 6 | . 1 5 . Investigation 4 | . 1 3 . Extermination . | . . . . Reinforcement 2 | . . 2 . Assault . | . . . . Garrison . | . . . . Intercept . | . . . . Searches Triggered . | . . . . Construction Impeded . | . . . . Haulers Reinforced . | . . . . Active Scanning Responses . | . . . . Cargo Convoy Interrupts . | . . . . Stealth | -11 -10 -9 -9 --------- Run | Yrd Mat Mat Min Distress Signals 3 | . 3 . . Communications Jammed . | . . . . Distress Signals . | . . . . Times Spotted 49 | . 17 12 20 Peak Tracking Total 8 | . 5 4 8 Tactical Retreats 3 | . . . 3 Traps | -11 -10 -9 -9 ------- Run | Yrd Mat Mat Min Traps Triggered 6 | . 5 1 . Indirectly . | . . . . Trap Hack Attempts . | . . . . Triggered . | . . . . Disarmed . | . . . . Reprogrammed . | . . . . Reused . | . . . . Traps Extracted . | . . . . Installed . | . . . . Triggered . | . . . . Machines | -11 -10 -9 -9 ---------- Run | Yrd Mat Mat Min Machines Disabled . | . . . . Max in Single Turn . | . . . . Machines Repaired . | . . . . Machines Dismantled . | . . . . Machines Sabotaged . | . . . . Overloaded Fab Kills . | . . . . Hacking | -11 -10 -9 -9 --------- Run | Yrd Mat Mat Min Machines Accessed 5 | . 3 2 . Terminals 5 | . 3 2 . Fabricators . | . . . . Repair Stations . | . . . . Recycling Units . | . . . . Scanalyzers . | . . . . Garrison Access . | . . . . Total Hacks 15 | . 9 6 . Successful 5 | . 3 2 . Failed 10 | . 6 4 . Catastrophic 1 | . . 1 . Database Lockouts . | . . . . Manual 2 | . 2 . . Terminals 15 | . 9 6 . Fabricators . | . . . . Repair Stations . | . . . . Recycling Units . | . . . . Scanalyzers . | . . . . Garrison Access . | . . . . Terminal Hacks 5 | . 3 2 . Prototype ID Bank 1 | . 1 . . Repair Station Index 1 | . 1 . . Alert Level 1 | . . 1 . Locate Traps 1 | . 1 . . Recall Investigation 1 | . . 1 . Fabricator Hacks . | . . . . Repair Station Hacks . | . . . . Recycling Unit Hacks . | . . . . Scanalyzer . | . . . . Garrison Access Hacks . | . . . . Unauthorized Hacks . | . . . . Terminals . | . . . . Fabricators . | . . . . Repair Stations . | . . . . Recycling Units . | . . . . Scanalyzers . | . . . . Garrison Access . | . . . . Data Cores Recovered . | . . . . Used . | . . . . Hacking Detections 5 | . 3 2 . Full Trace Events 3 | . 1 2 . Feedback Events 1 | . . 1 . Corruption 1 | . . 1 . Feedback Blocked . | . . . . Robot Schematics Acquired . | . . . . Robots Built . | . . . . Authchips . | . . . . Time . | . . . . Total Robot Build Rating . | . . . . Part Schematics Acquired . | . . . . Parts Built . | . . . . Authchips . | . . . . Time . | . . . . Total Part Build Rating . | . . . . Parts Repaired . | . . . . Time . | . . . . Parts Recycled . | . . . . Recycled Matter . | . . . . Retrieved Matter . | . . . . Retrieved Components . | . . . . Parts Scanalyzed . | . . . . Part Schematics Acquired . | . . . . Parts Damaged . | . . . . Bothacking | -11 -10 -9 -9 ------------ Run | Yrd Mat Mat Min Used RIF Installer . | . . . . Robots Hacked 1 | . . 1 . Non-combat . | . . . . Combat 1 | . . 1 . Robot Hacks Applied 1 | . . 1 . parse_system 1 | . . 1 . Relay Couplers Released . | . . . . Fabnet Peak Effective % . | . . . . Robots Rewired . | . . . . Allies Hacked . | . . . . Hacks Repelled . | . . . . Allies | -11 -10 -9 -9 -------- Run | Yrd Mat Mat Min Total Allies 2 | . . . 2 Largest Group 2 | . . . 2 Highest-Rated Group 45 | . . . 45 Highest-Rated Ally 31 | . . . 31 Total Orders . | . . . . Ally Attacks 11 | . . . 11 Total Damage 149 | . . . 149 Kills 2 | . . . 2 Allies Corrupted . | . . . . Allies Melted . | . . . . Intel | -11 -10 -9 -9 ------- Run | Yrd Mat Mat Min Robot Analysis Total . | . . . . Derelict Logs Recovered . | . . . . Drone Launches . | . . . . Drone Recoveries . | . . . . Exploration | -11 -10 -9 -9 ------------- Run | Yrd Mat Mat Min Turns Passed 2128 | 61 1298 450 319 Spaces Moved 1122 | 39 714 214 155 Core 108 | 8 98 . 2 Treads . | . . . . Legs 1014 | 31 616 214 153 Wheels . | . . . . Hover . | . . . . Flight . | . . . . Fastest Speed 50 | 50 100 120 100 Average Speed 167 | 119 166 181 165 Slowest Speed 250 | 200 250 190 190 Overloaded Moves . | . . . . Propulsion Burnouts . | . . . . Robots Hopped . | . . . . Cave-ins Triggered . | . . . . Exploration Rate (%) 29 | 4 66 17 29 Regions Visited 3 Branch Regions 1 Pre-discovered Areas . | . . . . Known Exits Taken 2 | . 1 1 . Unknown Exits Taken 1 | 1 . . . Scrap Searched . | . . . . Spaces Dug . | . . . . Terrain Destroyed 49 | . 15 . 34 Melee . | . . . . Projectile . | . . . . AOE 49 | . 15 . 34 Terrain Rammed . | . . . . Walls Destroyed . | . . . . Machines Disabled . | . . . . Actions | -11 -10 -9 -9 --------- Run | Yrd Mat Mat Min Total 1279 | 51 792 255 181 Wait 25 | . 21 2 2 Move 1119 | 38 713 213 155 Hop . | . . . . Pick Up 31 | 8 14 7 2 Fast Attach 13 | 4 9 . . Attach 11 | 1 5 3 2 Detach . | . . . . Swap 4 | . 2 1 1 Drop 12 | . 8 4 . Fire 56 | . 18 20 18 Melee 6 | . 1 5 . Ram 1 | . 1 . . Kick 1 | . . . 1 Crush . | . . . . Escape Stasis . | . . . . Rewire . | . . . . Trap . | . . . . Miscellaneous . | . . . . Route ------- -11/Scrapyard -10/Materials -9/Materials -9/Mines History --------- Turn | Location | Event 14 | -11/Scrapyard | Discovered new exit (range 15) 62 | -11/Scrapyard | Entered Materials 306 | -10/Materials | Build established: Mutant 1159 | -10/Materials | Core integrity fell below 50% 1268 | -10/Materials | Discovered new exit (range 14) 1340 | -10/Materials | Identified exit to Materials 1360 | -10/Materials | Entered another Materials area 1360 | -9/Materials | Evolved 2 slots: Power x1, Utility x1 1691 | -9/Materials | Build established: Scavenger-Mutant 1785 | -9/Materials | Discovered new exit (range 10) 1807 | -9/Materials | Identified exit to Mines 1810 | -9/Materials | Entered Mines 1885 | -9/Mines | Lost 3 parts (1n1u1w) 2072 | -9/Mines | Assembled infested the area 2091 | -9/Mines | Build established: Mutant 2126 | -9/Mines | Core integrity fell below 50% 2128 | -9/Mines | Core integrity fell below 20% 2129 | -9/Mines | Destroyed by D-53 Grenadier with Mini Grenade Launcher Last Messages --------------- 02089_ Switching to secondary target: as-29527. 02089_ as-29527 destroyed. 02091_ K-01 Serf collects debris. 02095_ as-90788 destroyed. 02099_ System corrupted: Substantial component data lost. 02101_ Acquired 24 matter. 02104_ Acquired 4 matter. 02105_ Aluminum Leg destroyed. 02106_ as-42416 destroyed. 02107_ Acquired 4 matter. 02110_ Acquired 1 matter. 02112_ as-01313 destroyed. 02119_ as-44795 destroyed. 02119_ C-30 ARC bursts open, deploying its payload. 02119_ D-53 Grenadier unfolds itself. 02123_ Shotgun destroyed. 02124_ U-05 Engineer builds a Wall. 02126_ Destroyed Com. Wheel. 02126_ U-05 Engineer destroyed. 02129_ The unstable cave ceiling collapses. Map ----- +----------------------------------------------------+ | ?????????????????????????????????????????????????? | | ?????????????????????????????????????????????????? | | ?????????????????????????????????????????????????? | | ?????????????????????????????????????????????????? | | ??????????????????????#??????????????????????????? | | ??????????????????????# ?????????????????????????? | | ??????????????????????? ???????????????????????? | | ???????????????????????? ??????????###?????????? | | ????????????????????????? #???????? #?????????? | | ??????????????????????????? ???????# #???###???? | | ????????????????????????????? ??????# #??? ????? | | ??????????????????????????????# ####?# #??? #????? | | ??????????????????????????????# ### #### #????? | | ?????????????????????????????????# % ##???? | | ?????????????????????????????????# #???? | | ?????????????????????????????????#### #???? | | ????????????????????????????????????# ##???? | | ????????????????????????????????????# ## #????? | | ????????????????????????????????????# ### #????? | | ????????????????????????????????????# #?# ##????? | | ???????????????????????######???????# #?#% #?????? | | ??????????????????????## ####???## ##% #???### | | ?????????????????????## ## ## %##### | | ???????????????#### ## d #?# | | ???????????????# ! #?# % | | ?????????????# a @ d % #??######## | | ????????????# =*! #?????????# | | ????????????# ## #!%=##?????????# | | ????????????## ????## # ### #??????????### | | ??????????????????????#### #### #????????????? | | ?????????????????????????#####?# ########?????? | | ???????????????????????????????# #???? | | ???????????????????????????????# #######?????? | | ???????????????????????????????## #???????????? | | ????????????????????????????????## ##???????????? | | ?????????????????????????????????# ##????????????? | | ?????????????????????????????????# #?????????????? | | ?????????????????????????????????# #?????????????? | | ?????????????????????????????????# #?????????????? | | ?????????????????????????????????# #?????????????? | | ?????????????????????????????????# #?????????????? | | ?????????????????????????????????# #?????????????? | | ?????????????????????????????????# #?????????????? | | ?????????????????????????????????# #?????????????? | | ?????????????????????????????????# #?????????????? | | ?????????????????????????????????# #?????????????? | | ????????????????????????????????? $ ?????????????? | | ?????????????????????????????????###?????????????? | | ?????????????????????????????????????????????????? | | ?????????????????????????????????????????????????? | +----------------------------------------------------+ Best States ------------- Heat Dissipation 28 Energy Generation 19 Energy Capacity 310 Matter Stores 300 Matter Capacity 300 Sight Range 18 Terrain Scan Density 10 Armor Coverage 150 Evasion (%) 55 Item Schematics ----------------- None Robot Schematics ------------------ None Fabricated ------------ Nothing Alien Tech Used ----------------- None Achievements -------------- GoHome() Challenges ------------ None Game ------ Seed CoolantAbsorptionFirepult Manual? 0 Play Time 00:22:44 Cumulative 5.0 hours Start 2024.07.25 @ 13:53:48 End 2024.07.25 @ 17:42:52 Sessions 3 Manual Loads 0 Difficulty Rogue Special Mode None Game No. 17 Rogue 17 Adventurer 0 Explorer 0 Win Type - Total 0 Types 0/0/0/0/0/0/0/0/0 Lore% 5 Gallery% 10 Achievement% 9 Wizard Run 0 Options --------- Layout 0 ASCII 1 Keyboard 1 Movement Vi Keybinds 1 Fullscreen 2 Font 24/Proggy Map View 76x50 Zoom Use 0% Tactical HUD 1 Map Filters NONE Filters NONE Steam 1 RUN: 2363940e-4acb-43fa-a265-d9c83e8b824b